fUSD/lending_fUSD_20241125
["ID","MTS","AMOUNT","RATE_DAILY","PERIOD"]
[343248560,1732530944636,-3017.6,0.00040995,21]
[343248561,1732530944661,-1093.08,0.00040995,21]
[343248562,1732530944686,-500.0,0.00040995,21]
[343248563,1732530944711,-4342.14,0.00040995,21]
[343248564,1732530944734,-500.0,0.00040995,21]
[343248565,1732530944757,-575.38,0.00040995,21]
[343248566,1732530944782,-500.0,0.00040995,21]
[343248567,1732530944806,-500.0,0.00040995,21]
[343248568,1732530944829,-500.0,0.00040995,21]
[343248569,1732530944853,-500.0,0.00040995,21]
[343248570,1732530944878,-25705.96,0.00040995,21]
[343248571,1732530944903,-500.0,0.00040995,21]
[343248572,1732530944926,-500.0,0.00040995,21]
[343248573,1732530944949,-500.0,0.00040995,21]
[343248574,1732530944972,-267.10164122,0.00040995,21]
[343248575,1732530944994,-592.56369024,0.00040995,21]
[343248576,1732530945018,-3607.02,0.00040995,21]
[343248577,1732530945043,-500.0,0.00040995,21]
[343248578,1732530945066,-500.0,0.00040995,21]
[343248579,1732530945089,-4342.15,0.00040995,21]
[343248580,1732530945114,-500.0,0.00040995,21]
[343248581,1732530945137,-500.0,0.00040995,21]
[343248582,1732530945160,-568.6836392,0.00040995,21]
[343248583,1732530945183,-500.0,0.00040995,21]
[343248584,1732530945205,-519.07501138,0.00040995,21]
[343248585,1732530945229,-5612.9,0.00040995,21]
[343248586,1732530945253,-4899.78,0.00040995,21]
[343248587,1732530945276,-500.0,0.00040995,21]
[343248588,1732530945300,-500.0,0.00040995,21]
[343248589,1732530945325,-17608.4,0.00040995,21]
[343248590,1732530945349,-500.0,0.00040995,21]
[343248591,1732530945373,-500.0,0.00040995,21]
[343248592,1732530945396,-500.0,0.00040995,21]
[343248593,1732530945420,-500.0,0.00040995,21]
[343248594,1732530945445,-500.0,0.00040995,21]
[343248595,1732530945469,-697.37,0.00040995,21]
[343248596,1732530945492,-500.0,0.00040995,21]
[343248597,1732530945515,-500.0,0.00040995,21]
[343248598,1732530945542,-500.0,0.00040995,21]
[343248599,1732530945565,-562.74231272,0.00040995,21]
[343248600,1732530945588,-155.753518,0.00040995,21]
[343248601,1732530945610,-500.0,0.00040995,21]
[343248602,1732530945634,-655.61,0.00040995,21]
[343248603,1732530945658,-600.33,0.00040995,21]
[343248604,1732530945681,-510.93445521,0.00040995,21]
[343248605,1732530945703,-500.0,0.00040995,21]
[343248606,1732530945728,-500.0,0.00040995,21]
[343248607,1732530945751,-500.0,0.00040996,21]
[343248608,1732530945773,-500.0,0.00040996,21]
[343248609,1732530945797,-500.0,0.00040996,21]
[343248610,1732530945821,-1701.06,0.00040996,21]
[343248611,1732530945844,-500.0,0.00040996,21]
[343248612,1732530945869,-500.0,0.00040996,21]
[343248613,1732530945892,-925.13,0.00040996,21]
[343248614,1732530945914,-500.0,0.00040996,21]
[343248615,1732530945936,-500.0,0.00040996,21]
[343248616,1732530945959,-500.0,0.00040996,21]
[343248617,1732530945981,-500.0,0.00040996,21]
[343248618,1732530946004,-500.0,0.00040996,21]
[343248619,1732530946029,-500.0,0.00040996,21]
[343248620,1732530946052,-500.0,0.00040996,21]
[343248621,1732530946076,-500.0,0.00040996,21]
[343248622,1732530946099,-520.89,0.00040996,21]
[343248623,1732530946122,-692.96,0.00040996,21]
[343248624,1732530946145,-500.0,0.00040996,21]
[343248625,1732530946168,-500.0,0.00040996,21]
[343248626,1732530946192,-500.0,0.00040996,21]
[343248627,1732530946215,-500.0,0.00040996,21]
[343248628,1732530946238,-500.0,0.00040996,21]
[343248629,1732530946260,-500.0,0.00040996,21]
[343248630,1732530946286,-500.0,0.00040996,21]
[343248631,1732530946309,-500.0,0.00040996,21]
[343248632,1732530946332,-500.0,0.00040996,21]
[343248633,1732530946354,-500.0,0.00040996,21]
[343248634,1732530946378,-500.0,0.00040996,21]
[343248635,1732530946400,-500.0,0.00040996,21]
[343248636,1732530946421,-500.0,0.00040996,21]
[343248637,1732530946444,-500.0,0.00040996,21]
[343248638,1732530946466,-500.0,0.00040996,21]
[343248639,1732530946489,-500.0,0.00040996,21]
[343248640,1732530946512,-562.80899473,0.00040996,21]
[343248641,1732530946540,-500.0,0.00040996,21]
[343248642,1732530946564,-500.0,0.00040996,21]
[343248643,1732530946588,-500.0,0.00040996,21]
[343248644,1732530946613,-500.0,0.00040996,21]
[343248645,1732530946637,-500.0,0.00040996,21]
[343248646,1732530946661,-1214.83,0.00040996,21]
[343248647,1732530946684,-500.0,0.00040996,21]
[343248648,1732530946911,-500.0,0.00040996,21]
[343248649,1732530946935,-500.0,0.00040996,21]
[343248650,1732530946956,-1532.3,0.00040996,21]
[343248651,1732530946979,-500.0,0.00040996,21]
[343248652,1732530947002,-500.0,0.00040996,21]
[343248653,1732530947024,-500.0,0.00040996,21]
[343248654,1732530947049,-1203.77,0.00040996,21]
[343248655,1732530947072,-500.0,0.00040996,21]
[343248656,1732530947094,-500.0,0.00040996,21]
[343248657,1732530947116,-500.0,0.00040996,21]
[343248658,1732530947138,-500.0,0.00040996,21]
[343248659,1732530947160,-500.0,0.00040996,21]
[343248660,1732530947183,-500.0,0.00040996,21]
[343248661,1732530947205,-500.0,0.00040996,21]
[343248662,1732530947226,-410.04134155,0.00040996,21]
[343248663,1732530947249,-500.0,0.00040996,21]
[343248664,1732530947270,-500.0,0.00040996,21]
[343248665,1732530947294,-500.0,0.00040996,21]
[343248666,1732530947318,-500.0,0.00040996,21]
[343248667,1732530947340,-500.0,0.00040996,21]
[343248668,1732530947363,-500.0,0.00040996,21]
[343248669,1732530947387,-500.0,0.00040996,21]
[343248670,1732530947409,-500.0,0.00040996,21]
[343248671,1732530947432,-225.01298303,0.00040996,21]
[343248672,1732530947454,-500.0,0.00040996,21]
[343248673,1732530947475,-500.0,0.00040996,21]
[343248674,1732530947498,-3422.22,0.00040996,21]
[343248675,1732530947520,-500.0,0.00040996,21]
[343248676,1732530947547,-500.0,0.00040996,21]
[343248677,1732530947570,-500.0,0.00040996,21]
[343248678,1732530947593,-500.0,0.00040996,21]
[343248679,1732530947617,-1133.44,0.00040996,21]
[343248680,1732530947640,-500.0,0.00040996,21]
[343248681,1732530947662,-500.0,0.00040996,21]
[343248682,1732530947684,-500.0,0.00040996,21]
[343248683,1732530947706,-500.0,0.00040996,21]
[343248684,1732530947730,-500.0,0.00040996,21]
[343248685,1732530947754,-543.67409221,0.00040996,21]
[343248686,1732530947778,-500.0,0.00040996,21]
[343248687,1732530947801,-500.0,0.00040996,21]
[343248688,1732530947823,-500.0,0.00040996,21]
[343248689,1732530947845,-500.0,0.00040996,21]
[343248690,1732530947869,-924.22,0.00040996,21]
[343248691,1732530947892,-500.0,0.00040996,21]
[343248692,1732530947914,-546.46848768,0.00040996,21]
[343248693,1732530947938,-500.0,0.00040996,21]
[343248694,1732530947961,-500.0,0.00040996,21]
[343248695,1732530947983,-461.6113897,0.00040996,21]
[343248696,1732530948006,-500.0,0.00040996,21]
[343248697,1732530948032,-500.0,0.00040996,21]
[343248698,1732530948064,-676.06,0.00040996,21]
[343248699,1732530948088,-1410.17,0.00040996,21]
[343248700,1732530948113,-3129.92,0.00040996,21]
[343248701,1732530948138,-500.0,0.00040996,21]
[343248702,1732530948162,-500.0,0.00040996,21]
[343248703,1732530948185,-500.0,0.00040996,21]
[343248704,1732530948209,-500.0,0.00040996,21]
[343248705,1732530948232,-500.0,0.00040996,21]
[343248706,1732530948257,-500.0,0.00040996,21]
[343248707,1732530948284,-9483.96,0.00040996,21]
[343248708,1732530948309,-500.0,0.00040996,21]
[343248709,1732530948333,-500.0,0.00040996,21]
[343248710,1732530948356,-500.0,0.00040996,21]
[343248711,1732530948381,-500.0,0.00040996,21]
[343248712,1732530948407,-500.0,0.00040996,21]
[343248713,1732530948430,-529.56313626,0.00040996,21]
[343248714,1732530948454,-500.0,0.00040996,21]
[343248715,1732530948477,-563.67974094,0.00040996,21]
[343248716,1732530948503,-500.0,0.00040996,21]
[343248717,1732530948528,-289.48151407,0.00040996,21]
[343248718,1732530948556,-500.0,0.00040996,21]
[343248719,1732530948581,-500.0,0.00040996,21]
[343248720,1732530948607,-500.0,0.00040996,21]
[343248721,1732530948635,-500.0,0.00040996,21]
[343248722,1732530948660,-7938.89,0.00040996,21]
[343248723,1732530948686,-500.0,0.00040996,21]
[343248724,1732530948713,-518.79945206,0.00040996,21]
[343248725,1732530948739,-500.0,0.00040996,21]
[343248726,1732530948766,-250.0,0.00040996,21]
[343248727,1732530948793,-500.0,0.00040996,21]
[343248728,1732530948818,-1216.04,0.00040996,21]
[343248729,1732530948844,-500.0,0.00040996,21]
[343248730,1732530948870,-500.0,0.00040996,21]
[343248731,1732530948895,-500.0,0.00040996,21]
[343248732,1732530948919,-3978.3,0.00040996,21]
[343248733,1732530948942,-500.0,0.00040996,21]
[343248734,1732530948965,-500.0,0.00040996,21]
[343248735,1732530948989,-702.07,0.00040996,21]
[343248736,1732530949013,-930.71,0.00040996,21]
[343248737,1732530949038,-195.5,0.00040996,21]
[343248738,1732530949061,-500.0,0.00040996,21]
[343248739,1732530949084,-500.0,0.00040996,21]
[343248740,1732530949106,-500.0,0.00040996,21]
[343248741,1732530949131,-500.0,0.00040996,21]
[343248742,1732530949155,-500.0,0.00040996,21]
[343248743,1732530949178,-1611.58,0.00040996,21]
[343248744,1732530949201,-500.0,0.00040996,21]
[343248745,1732530949224,-500.0,0.00040996,21]
[343248746,1732530949247,-174.13494539,0.00040996,21]
[343248747,1732530949271,-1089.96,0.00040996,21]
[343248748,1732530949296,-5384.92,0.00040996,21]
[343248749,1732530949320,-500.0,0.00040996,21]
[343248750,1732530949343,-500.0,0.00040996,21]
[343248751,1732530949368,-708.11,0.00040996,21]
[343248752,1732530949392,-500.0,0.00040996,21]
[343248753,1732530949416,-977.78,0.00040996,21]
[343248754,1732530949441,-500.0,0.00040996,21]
[343248755,1732530949466,-529.97,0.00040996,21]
[343248756,1732530949492,-500.0,0.00040996,21]
[343248757,1732530949517,-500.0,0.00040996,21]
[343248758,1732530949545,-500.0,0.00040996,21]
[343248759,1732530949571,-500.0,0.00040996,21]
[343248760,1732530949597,-1276.53,0.00040996,21]
[343248761,1732530949625,-500.0,0.00040996,21]
[343248762,1732530949651,-500.0,0.00040996,21]
[343248763,1732530949676,-500.0,0.00040996,21]
[343248764,1732530949702,-500.0,0.00040996,21]
[343248765,1732530949975,-683.58,0.00040996,21]
[343248766,1732530950002,-500.0,0.00040996,21]
[343248767,1732530950025,-500.0,0.00040996,21]
[343248768,1732530950052,-500.0,0.00040996,21]
[343248769,1732530950077,-500.0,0.00040996,21]
[343248770,1732530950102,-367.30079124,0.00040996,21]
[343248771,1732530950128,-640.47,0.00040996,21]
[343248772,1732530950151,-5734.8,0.00040996,21]
[343248773,1732530950176,-786.46,0.00040996,21]
[343248774,1732530950201,-211.60766048,0.00040996,21]
[343248775,1732530950225,-1187.33,0.00040996,21]
[343248776,1732530950250,-500.0,0.00040996,21]
[343248777,1732530950275,-910.51,0.00040996,21]
[343248778,1732530950302,-500.0,0.00040996,21]
[343248779,1732530950327,-500.0,0.00040996,21]
[343248780,1732530950352,-500.0,0.00040996,21]
[343248781,1732530950376,-168.09628177,0.00040996,21]
[343248782,1732530950400,-1094.91,0.00040996,21]
[343248783,1732530950424,-824.84,0.00040996,21]
[343248784,1732530950448,-1069.64,0.00040996,21]
[343248785,1732530950471,-500.0,0.00040996,21]
[343248786,1732530950495,-500.0,0.00040996,21]
[343248787,1732530950517,-500.0,0.00040996,21]
[343248788,1732530950544,-1719.67,0.00040996,21]
[343248789,1732530950568,-500.0,0.00040996,21]
[343248790,1732530950594,-500.0,0.00040996,21]
[343248791,1732530950618,-500.0,0.00040996,21]
[343248792,1732530950644,-500.0,0.00040997,21]
[343248793,1732530950670,-544.16994471,0.00040997,21]
[343248794,1732530950694,-500.0,0.00040997,21]
[343248795,1732530950719,-500.0,0.00040997,21]
[343248796,1732530950745,-4522.7,0.00040997,21]
[343248797,1732530950768,-671.4,0.00040997,21]
[343248798,1732530950795,-5410.63,0.00040997,21]
[343248799,1732530950820,-500.0,0.00040997,21]
[343248800,1732530950845,-1973.4,0.00040997,21]
[343248801,1732530950868,-4420.66,0.00040997,21]
[343248802,1732530950893,-5984.38,0.00040997,21]
[343248803,1732530950918,-5989.1,0.00040997,21]
[343248804,1732530950944,-500.0,0.00040997,21]
[343248805,1732530950970,-500.0,0.00040997,31]
[343248806,1732530950997,-500.0,0.00040997,31]
[343248807,1732530951023,-500.0,0.00040997,31]
[343248808,1732530951052,-500.0,0.00040997,31]
[343248809,1732530951078,-500.0,0.00040997,31]
[343248810,1732530951105,-500.0,0.00040997,31]
[343248811,1732530951134,-500.0,0.00040997,31]
[343248812,1732530951161,-500.0,0.00040997,31]
[343248813,1732530951187,-500.0,0.00040997,31]
[343248814,1732530951214,-500.0,0.00040997,31]
[343248815,1732530951239,-500.0,0.00040997,31]
[343248816,1732530951265,-420.66587862,0.00040997,31]
[343248817,1732530951294,-500.0,0.00040997,31]
[343248818,1732530951320,-500.0,0.00040997,31]
[343248819,1732530951345,-500.0,0.00040997,31]
[343248820,1732530951370,-500.0,0.00040997,31]
[343248821,1732530951396,-500.0,0.00040997,31]
[343248822,1732530951421,-500.0,0.00040997,31]
[343248823,1732530951447,-500.0,0.00040997,31]
[343248824,1732530951471,-500.0,0.00040997,31]
[343248825,1732530951496,-612.30236644,0.00040997,31]
[343248826,1732530951525,-500.0,0.00040997,31]
[343248827,1732530951556,-500.0,0.00040997,31]
[343248828,1732530951586,-500.0,0.00040997,31]
[343248829,1732530951614,-500.0,0.00040997,31]
[343248830,1732530951640,-500.0,0.00040997,31]
[343248831,1732530951668,-500.0,0.00040997,31]
[343248832,1732530951693,-422.49345434,0.00040997,31]
[343248833,1732530951719,-500.0,0.00040997,31]
[343248834,1732530951745,-500.0,0.00040997,31]
[343248835,1732530951772,-500.0,0.00040997,31]
[343248836,1732530951801,-500.0,0.00040997,31]
[343248837,1732530951827,-500.0,0.00040997,31]
[343248838,1732530951852,-500.0,0.00040997,31]
[343248839,1732530951878,-500.0,0.00040997,31]
[343248840,1732530951903,-1357.91,0.00040997,21]
[343248841,1732530951928,-3894.59,0.00040997,21]
[343248842,1732530951953,-14063.19,0.00040997,21]
[343248843,1732530951978,-500.0,0.00040997,21]
[343248844,1732530952004,-2412.24,0.00040997,21]
[343248845,1732530952033,-734.24,0.00040997,21]
[343248846,1732530952057,-500.0,0.00040998,21]
[343248847,1732530952086,-500.0,0.00040998,21]
[343248848,1732530952109,-500.0,0.00040998,21]
[343248849,1732530952132,-500.0,0.00040998,21]
[343248850,1732530952155,-503.29023157,0.00040998,21]
[343248851,1732530952178,-503.46992125,0.00040998,21]
[343248852,1732530952201,-500.0,0.00040998,21]
[343248853,1732530952229,-509.42189717,0.00040998,21]
[343248854,1732530952253,-509.11749788,0.00040998,21]
[343248855,1732530952278,-500.0,0.00040998,21]
[343248856,1732530952305,-503.65774922,0.00040998,21]
[343248857,1732530952330,-500.0,0.00040998,21]
[343248858,1732530952355,-472.16094396,0.00040998,21]
[343248859,1732530952379,-922.35,0.00040998,21]
[343248860,1732530952404,-500.0,0.00040998,21]
[343248861,1732530952428,-500.0,0.00040998,21]
[343248862,1732530952452,-178.56497696,0.00040998,21]
[343248863,1732530952476,-505.79852552,0.00040998,21]
[343248864,1732530952501,-500.0,0.00040998,21]
[343248865,1732530952526,-500.0,0.00040998,21]
[343248866,1732530952556,-500.0,0.00040998,21]
[343248867,1732530952584,-500.0,0.00040998,21]
[343248868,1732530952612,-500.0,0.00040998,21]
[343248869,1732530952640,-500.0,0.00040998,21]
[343248870,1732530952664,-500.0,0.00040998,21]
[343248871,1732530952688,-500.0,0.00040998,21]
[343248872,1732530952713,-500.0,0.00040998,21]
[343248873,1732530952737,-880.06,0.00040998,21]
[343248874,1732530952761,-500.0,0.00040998,21]
[343248875,1732530952787,-500.0,0.00040998,21]
[343248876,1732530952813,-500.0,0.00040998,21]
[343248877,1732530952838,-493.80284047,0.00040998,21]
[343248878,1732530952863,-500.0,0.00040998,21]
[343248879,1732530952889,-310.36942523,0.00040998,21]
[343248880,1732530952916,-995.54,0.00040998,21]
[343248881,1732530952940,-500.0,0.00040998,21]
[343248882,1732530952966,-500.0,0.00040998,21]
[343248883,1732530953226,-500.0,0.00040998,21]
[343248884,1732530953252,-1000.0,0.00040998,21]
[343248885,1732530953276,-500.0,0.00040998,21]
[343248886,1732530953303,-500.0,0.00040998,21]
[343248887,1732530953327,-500.0,0.00040998,21]
[343248888,1732530953352,-500.0,0.00040998,21]
[343248889,1732530953376,-500.0,0.00040998,21]
[343248890,1732530953400,-500.0,0.00040998,21]
[343248891,1732530953425,-500.0,0.00040998,21]
[343248892,1732530953452,-500.0,0.00040998,21]
[343248893,1732530953476,-1037.63,0.00040998,21]
[343248894,1732530953501,-777.53,0.00040998,21]
[343248895,1732530953527,-500.0,0.00040998,21]
[343248896,1732530953557,-503.40731481,0.00040998,21]
[343248897,1732530953584,-500.0,0.00040998,21]
[343248898,1732530953609,-500.0,0.00040998,21]
[343248899,1732530953634,-509.98229047,0.00040998,21]
[343248900,1732530953660,-500.0,0.00040998,21]
[343248901,1732530953686,-500.0,0.00040998,21]
[343248902,1732530953712,-1089.67,0.00040998,21]
[343248903,1732530953737,-500.0,0.00040998,21]
[343248904,1732530953763,-500.0,0.00040998,21]
[343248905,1732530953790,-500.0,0.00040998,21]
[343248906,1732530953815,-500.0,0.00040998,21]
[343248907,1732530953840,-551.59,0.00040998,21]
[343248908,1732530953867,-500.0,0.00040998,21]
[343248909,1732530953892,-790.58,0.00040998,21]
[343248910,1732530953917,-500.0,0.00040998,21]
[343248911,1732530953943,-500.0,0.00040998,21]
[343248912,1732530953967,-500.0,0.00040998,21]
[343248913,1732530953990,-1539.48,0.00040998,21]
[343248914,1732530954015,-4250.59,0.00040998,21]
[343248915,1732530954039,-961.47,0.00040998,21]
[343248916,1732530954063,-500.0,0.00040998,21]
[343248917,1732530954088,-500.0,0.00040998,21]
[343248918,1732530954113,-500.0,0.00040998,21]
[343248919,1732530954137,-500.0,0.00040998,21]
[343248920,1732530954162,-500.0,0.00040998,21]
[343248921,1732530954186,-1576.46,0.00040998,21]
[343248922,1732530954212,-504.82,0.00040998,21]
[343248923,1732530954237,-500.0,0.00040998,21]
[343248924,1732530954262,-500.0,0.00040998,21]
[343248925,1732530954288,-500.0,0.00040998,21]
[343248926,1732530954312,-500.0,0.00040998,21]
[343248927,1732530954336,-2192.49,0.00040998,21]
[343248928,1732530954361,-542.31,0.00040998,21]
[343248929,1732530954385,-671.48,0.00040998,21]
[343248930,1732530954411,-500.0,0.00040998,21]
[343248931,1732530954437,-500.0,0.00040998,21]
[343248932,1732530954461,-633.88,0.00040998,21]
[343248933,1732530954485,-500.0,0.00040998,21]
[343248934,1732530954511,-500.0,0.00040998,21]
[343248935,1732530954539,-2060.04,0.00040998,21]
[343248936,1732530954563,-500.0,0.00040998,21]
[343248937,1732530954590,-500.0,0.00040998,21]
[343248938,1732530954615,-500.0,0.00040998,21]
[343248939,1732530954641,-1292.43,0.00040998,21]
[343248940,1732530954665,-746.0,0.00040998,21]
[343248941,1732530954690,-500.0,0.00040998,21]
[343248942,1732530954714,-500.0,0.00040998,21]
[343248943,1732530954738,-3255.95,0.00040998,21]
[343248944,1732530954763,-191.69678805,0.00040998,21]
[343248945,1732530985123,4167.4690769,0.0004,30]
[343248946,1732531029870,5987.83,0.00039996,30]
[343248947,1732531149160,150.0,0.0003,2]
[343248948,1732531149184,150.0,0.0003,2]
[343248949,1732531149206,150.0,0.0003,2]
[343248950,1732531149228,115.0,0.0003,2]
[343248951,1732531169222,160000.0,0.0004,30]
[343248952,1732531219545,403.66,0.00039456,120]
[343248953,1732531239046,18433.59,0.0004,30]
[343248954,1732531324798,150.17,0.00039595,120]
[343248955,1732531486365,156.05,0.00038926,120]
[343248956,1732531603345,150.0,0.00030685,2]
[343248957,1732531603367,9.28,0.00030685,2]
[343248959,1732531627949,3465.55,0.00039519,30]
[343248960,1732531654086,150.99,0.00039486,30]
[343248961,1732531713663,500.0,0.00039999,31]
[343248962,1732531713698,500.0,0.00039999,31]
[343248963,1732531713752,500.0,0.00039999,31]
[343248964,1732531713790,500.0,0.00039999,31]
[343248965,1732531713834,500.0,0.00039999,31]
[343248966,1732531713878,500.0,0.00039999,31]
[343248967,1732531713911,500.0,0.00039999,31]
[343248968,1732531713945,500.0,0.00039999,31]
[343248969,1732531713981,500.0,0.00039999,31]
[343248970,1732531714014,500.0,0.00039999,31]
[343248971,1732531714052,500.0,0.00039999,31]
[343248972,1732531714086,500.0,0.00039999,31]
[343248973,1732531714127,500.0,0.00039999,31]
[343248974,1732531714161,500.0,0.00039999,31]
[343248975,1732531714196,500.0,0.00039999,31]
[343248976,1732531714230,500.0,0.00039999,31]
[343248977,1732531714268,500.0,0.00039999,31]
[343248978,1732531714305,500.0,0.00039999,31]
[343248979,1732531714338,500.0,0.00039999,31]
[343248980,1732531714374,500.0,0.00039999,31]
[343248981,1732531714409,500.0,0.00039999,31]
[343248982,1732531714442,422.49345434,0.00039999,31]
[343248983,1732531714483,612.30236644,0.00039999,31]
[343248984,1732531714847,500.0,0.00039999,31]
[343248985,1732531714886,500.0,0.00039999,31]
[343248986,1732531714921,500.0,0.00039999,31]
[343248987,1732531714969,420.66587862,0.00039999,31]
[343248988,1732531715198,500.0,0.00039999,31]
[343248989,1732531715233,500.0,0.00039999,31]
[343248990,1732531715267,500.0,0.00039999,31]
[343248991,1732531715304,500.0,0.00039999,31]
[343248992,1732531715348,500.0,0.00039999,31]
[343248993,1732531715384,500.0,0.00039999,31]
[343248994,1732531715424,500.0,0.00039999,31]
[343248995,1732531715458,500.0,0.00039999,31]
[343249010,1732531807007,150.0,0.00031,2]
[343249011,1732531807029,100.0,0.00031,2]
[343249013,1732531832190,-300.0,0.00033,2]
[343249014,1732531832200,-350.0,0.00035,2]
[343249015,1732531832210,-400.0,0.00037,2]
[343249016,1732531832220,-150.0,0.00037381,7]
[343249017,1732531832229,-3999.98713896,0.00037514,2]
[343249018,1732531832238,-3999.98713895,0.00037593,2]
[343249019,1732531832249,-934.54,0.00037614,2]
[343249020,1732531832258,-3999.98713895,0.00037672,2]
[343249021,1732531832268,-158.13,0.00037772,2]
[343249022,1732531832277,-500.0,0.00038199,2]
[343249023,1732531832286,-4232.18,0.00038577,2]
[343249024,1732531832295,-1798.36,0.00038595,2]
[343249025,1732531832304,-5840.54,0.00038678,2]
[343249026,1732531832314,-1000.0,0.00038696,2]
[343249027,1732531832324,-2544.36,0.00038794,2]
[343249028,1732531832333,-1811.26780877,0.00038816,2]
[343249029,1732531832352,-2455.625,0.00038816,2]
[343249030,1732531836457,-594.5,0.00038816,2]
[343249031,1732531836562,-17525.21567663,0.00038816,2]
[343249032,1732531836573,-981.97,0.00038816,2]
[343249033,1732531836584,-531.4215146,0.00038816,2]
[343249034,1732531836594,-250.0,0.00038817,2]
[343249035,1732531836603,-663.34,0.00038864,2]
[343249036,1732531836613,-806.17,0.00038875,10]
[343249037,1732531836622,-3515.07556298,0.00038885,2]
[343249216,1732531838417,-746.2,0.00038885,2]
[343249218,1732531838429,-4260.0,0.00038885,2]
[343249220,1732531838440,-714.62353202,0.00038885,2]
[343249221,1732531838451,-3003.85086801,0.00038885,2]
[343249222,1732531838597,-3504.6435631,0.00038885,2]
[343249223,1732531838608,-1557.5565405,0.00038885,2]
[343249224,1732531838619,-3504.4935631,0.00038885,2]
[343249233,1732531840496,-1051.89044498,0.00038885,2]
[343249234,1732531840509,-1032.332,0.00038885,2]
[343249235,1732531840527,-9247.70642323,0.00038885,2]
[343249238,1732531841651,1490.83,0.0004,120]
[343249239,1732531841689,583.3,0.0004,120]
[343249240,1732531841897,4999.99,0.0004,120]
[343249251,1732531843207,-1063.14,0.00038885,2]
[343249260,1732531843270,-11800.25436797,0.00038885,2]
[343249263,1732531843281,-1102.71095321,0.00038885,2]
[343249268,1732531843345,-1455.01627217,0.00038885,2]
[343249270,1732531843356,-5718.35721168,0.00038885,2]
[343249278,1732531843462,-3937.2444406,0.00038885,2]
[343249279,1732531843473,-582.72853,0.00038885,2]
[343249280,1732531843484,-605.26752,0.00038885,2]
[343249281,1732531843544,-23122.88525083,0.00038885,2]
[343249282,1732531843556,-1933.75295562,0.00038885,2]
[343249283,1732531843565,-384.49689721,0.00038905,2]
[343249284,1732531843576,-303.95310279,0.00038905,2]
[343249285,1732531843585,-300.0,0.00038935,2]
[343249286,1732531843594,-450.0,0.00039,2]
[343249287,1732531843604,-50033.0,0.00039377,2]
[343249288,1732531843613,-3204.26153229,0.00039383,2]
[343249289,1732531843622,-2214.40814252,0.00039383,2]
[343249290,1732531843631,-3204.26153229,0.00039385,2]
[343249291,1732531843641,-200.0,0.00039387,2]
[343249292,1732531843650,-727.52574997,0.0003939,2]
[343249293,1732531843659,-200.0,0.00039392,2]
[343249294,1732531843667,-2214.40814252,0.00039394,2]
[343249295,1732531843676,-200.0,0.00039394,2]
[343249296,1732531843686,-3204.26153229,0.00039397,2]
[343249297,1732531843695,-2254.82619781,0.00039398,2]